Workbook

Sheet Deckblatt
B2: Schafkopf-Bargeldlos-Protokoll-Statistik-Programm
J27: Das Tabellenblatt "Tabelle1" darf nicht umbenannt werden.
J28: Bitte diese Originalversion abspeichern und dann mit einer
J29: Arbeitskopie spielen.
B34: Dies ist das Ergebniss langer Abende zweier Excel - Freak´s, aber wir haben unser bestes gegeben.
B35: Betaversion 1.0 ….. weitere Updates in Vorbereitung …....Gut Blatt wünschen Matthias und Elmar Zeh
B36: Die Verwendung ist kostenlos - Über eine Spende als Anerkennung würden wir uns aber sehr freuen.

Sheet Tabelle1
B2: Sauspiel | D2: Kreuzrunde | F2: 2 gegen 2 | H2: Die Spiele | J2: Solo | L2: Wenz | N2: Farbwenz | P2: Geier | R2: Farbgeier | T2: Bettel | V2: 1 geg 3 / Ramsch
C6: Gut Blatt wünschen Elmar und Matthias Zeh, Höchberg
B7: Tragen | F7: sie hier | J7: Ihre Namen | N7: ein. | P7: =TODAY() -> 2019-10-22
B8: Elvis Presley | D8: =SUM(D9:D1000) -> -989.39 | F8: Jürgen Drews | H8: =SUM(H9:H1000) -> 966.59 | J8: Peter Kraus | L8: =SUM(L9:L1000) -> 1010.59 | N8: Andrea Berg | P8: =SUM(P9:P1000) -> -987.79 | R8: verlorene Spiele
B9: =SUM(B10:B700) -> 3 | D9: x gewonnen | F9: =SUM(F10:F700) -> 2 | H9: x gewonnen | J9: =SUM(J10:J700) -> 4 | L9: x gewonnen | N9: =SUM(N10:N700) -> 3 | P9: x gewonnen | R9: =U9 -> 2 | T9: Spielart | U9: =SUM(U10:U700) -> 2 | V9: Spiel Nummer
B10: 1 | D10: 0.4 | H10: -0.4 | J10: 1 | L10: 0.4 | P10: -0.4 | R10: 0.4 | T10: Sauspiel | V10: 1
D11: -0.6 | F11: 1 | H11: 1.8 | L11: -0.6 | P11: -0.6 | R11: 0.6 | T11: Wenz | V11: 2
D12: -0.6 | H12: -0.6 | L12: -0.6 | N12: 1 | P12: 1.8 | R12: 0.6 | T12: Bettel | V12: 3
B13: 1 | D13: 0.6 | H13: -1.8 | J13: 1 | L13: 0.6 | N13: 1 | P13: 0.6 | R13: -0.6 | T13: Solo | U13: 1 | V13: 4
B14: 1 | D14: 10.8 | H14: -32.4 | J14: 1 | L14: 10.8 | N14: 1 | P14: 10.8 | R14: -10.8 | T14: Wenz | U14: 1 | V14: 5
D15: -999.99 | F15: 1 | H15: 999.99 | J15: 1 | L15: 999.99 | P15: -999.99 | R15: 999.99 | T15: 2 gegen 2 | V15: 6

Sheet Tabelle3 (hidden)

Sheet Statistik
W8: Spass am Spiel mit einer Statistik - die jeder will - aber keiner braucht !
W10: Spielprotokoll und Statistik vom:
W11: =TODAY() -> 2019-10-22 | AA11: davon wurden
W12: Gesamt | X12: =LARGE(Tabelle1!V10:V1010,1) -> 6 | Y12: Spiele | Z12: 1 | AA12: gewonnen | AB12: verloren
W13: davon | X13: =COUNTIF(Tabelle1!$T$10:$T$1012,"Sauspiel") -> 1 | Y13: Sauspiele | Z13: =X13/$X$12 -> 0.1666666667 | AA13: =X13-AB13 -> 1 | AB13: =SUM((Tabelle1!$T$10:$T$1010="Sauspiel")*(Tabelle1!$U$10:$U$1010=1)) -> 0 | AE13: Gut Blatt wünschen Elmar & Matthias Zeh, Höchberg
W14: davon | X14: =COUNTIF(Tabelle1!$T$10:$T$1012,"Kreuzrunde") -> 0 | Y14: Kreuzrunde | Z14: 0 | AA14: =X14-AB14 -> 0 | AB14: =SUM((Tabelle1!$T$10:$T$1010="Kreuzrunde")*(Tabelle1!$U$10:$U$1010=1)) -> 0
W15: davon | X15: =COUNTIF(Tabelle1!$T$10:$T$1012,"2 gegen 2") -> 1 | Y15: 2 gegen 2 | Z15: 0.1666666667 | AA15: =X15-AB15 -> 1 | AB15: =SUM((Tabelle1!$T$10:$T$1010="2 gegen 2")*(Tabelle1!$U$10:$U$1010=1)) -> 0
W16: davon | X16: =COUNTIF(Tabelle1!$T$10:$T$1012,"Solo") -> 1 | Y16: Solo | Z16: 0.1666666667 | AA16: 0 | AB16: =SUM((Tabelle1!$T$10:$T$1010="Solo")*(Tabelle1!$U$10:$U$1010=1)) -> 1
W17: davon | X17: =COUNTIF(Tabelle1!$T$10:$U$1012,"Wenz") -> 2 | Y17: Wenz | Z17: 0.3333333333 | AA17: 1 | AB17: =SUM((Tabelle1!$T$10:$T$1010="Wenz")*(Tabelle1!$U$10:$U$1010=1)) -> 1 | AD17: Hier finden Sie Ihr persönliches Gewinn- oder Verlustergebnis.
W18: davon | X18: =COUNTIF(Tabelle1!$T$10:$T$1012,"Farbwenz") -> 0 | Y18: Farbwenz | Z18: 0 | AA18: 0 | AB18: =SUM((Tabelle1!$T$10:$T$1010="Farbwenz")*(Tabelle1!$U$10:$U$1010=1)) -> 0
W19: davon | X19: =COUNTIF(Tabelle1!$T$10:$T$1012,"Geier") -> 0 | Y19: Geier | Z19: 0 | AA19: 0 | AB19: =SUM((Tabelle1!$T$10:$T$1010="Geier")*(Tabelle1!$U$10:$U$1010=1)) -> 0 | AD19: Gewinner ? | AE19: =Tabelle1!B8 -> Elvis Presley | AF19: =Tabelle1!F8 -> Jürgen Drews | AG19: =Tabelle1!J8 -> Peter Kraus | AH19: =Tabelle1!N8 -> Andrea Berg
W20: davon | X20: =COUNTIF(Tabelle1!$T$10:$T$1012,"Farbgeier") -> 0 | Y20: Farbgeier | Z20: 0 | AA20: 0 | AB20: =SUM((Tabelle1!$T$10:$T$1010="Farbgeier")*(Tabelle1!$U$10:$U$1010=1)) -> 0 | AD20: Beträge | AE20: Euro | AF20: Euro | AG20: Euro | AH20: Euro
W21: davon | X21: =COUNTIF(Tabelle1!$T$10:$T$1012,"Bettel") -> 1 | Y21: Bettel | Z21: 0.1666666667 | AA21: 1 | AB21: =SUM((Tabelle1!$T$10:$T$1010="Bettel")*(Tabelle1!$U$10:$U$1010=1)) -> 0 | AD21: gewonnen | AE21: =SUMIF(Tabelle1!B10:B1010,"1",Tabelle1!D10:D1010) -> 11.8 | AF21: =SUMIF(Tabelle1!F10:F1010,"1",Tabelle1!H10:H1010) -> 1001.79 | AG21: =SUMIF(Tabelle1!J10:J1010,"1",Tabelle1!L10:L1010) -> 1011.79 | AH21: =SUMIF(Tabelle1!N10:N1010,"1",Tabelle1!P10:P1010) -> 13.2
W22: davon | X22: =COUNTIF(Tabelle1!$T$10:$T$1012,"1 geg 3 / Ramsch") -> 0 | Y22: 1 geg 3 / Ramsch | Z22: 0 | AA22: 0 | AB22: =SUM((Tabelle1!$T$10:$T$1010="1 geg 3 / Ramsch")*(Tabelle1!$U$10:$U$1010=1)) -> 0 | AD22: verloren | AE22: =SUMIF(Tabelle1!B10:B1010,"",Tabelle1!D10:D1010) -> -1001.19 | AF22: =SUMIF(Tabelle1!F10:F1010,"",Tabelle1!H10:H1010) -> -35.2 | AG22: =SUMIF(Tabelle1!J10:J1010,"",Tabelle1!L10:L1010) -> -1.2 | AH22: =SUMIF(Tabelle1!N10:N1010,"",Tabelle1!P10:P1010) -> -1000.99
W23: von | X23: =X12 -> 6 | Y23: Spielen wurden: | AA23: =X24 -> 4 | AB23: =X25 -> 2 | AD23: Ergebnis: | AE23: =AE21+AE22 -> -989.39 | AF23: =AF21+AF22 -> 966.59 | AG23: =AG21+AG22 -> 1010.59 | AH23: =AH21+AH22 -> -987.79
W24: gewonnen | X24: =X12-X25 -> 4 | Y24: Spiele | Z24: =X24/X12 -> 0.6666666667 | AA24: gewonnen | AB24: verloren | AD24: Schnitt/Spiel | AE24: =AE23/$X$12 -> -164.8983333 | AF24: =AF23/$X$12 -> 161.0983333 | AG24: =AG23/$X$12 -> 168.4316667 | AH24: =AH23/$X$12 -> -164.6316667
W25: verloren | X25: =Tabelle1!R9 -> 2 | Y25: Spiele | Z25: =X25/X12 -> 0.3333333333
X27: =SUMIF(Tabelle1!U10:U1010,"",Tabelle1!R10:R1010) -> 1001.59 | Y27: € Plussummen | AA27: =X27/X24 -> 250.3975 | AB27: € | AD27: Totaler | AE27: =SUM($AE$21:$AH$21) -> 2038.58 | AF27: € gewonnen | AG27: Hier finden Sie die
X28: =SUMIF(Tabelle1!U10:U1010,"1",Tabelle1!R10:R1010)*-1 -> 11.4 | Y28: € Minussummen | AA28: =X28/X25 -> 5.7 | AB28: € | AD28: Umsatz | AE28: =SUM($AE$22:$AH$22) -> -2038.58 | AF28: € verloren | AG28: Summen aller Spiele
X29: =X27+X28 -> 1012.99 | Y29: € Gesamtsummen | AA29: =X29/X12 -> 168.8316667 | AB29: € | AD29: Schnitt | AE29: =$AF$26/$X$12 -> 0 | AF29: € je Spiel | AG29: und aller Spieler
X30: egal ob gewonnen oder verloren | AA30: Schnitt
X31: =X29/X12 -> 168.8316667 | Y31: €uro je Spiel im Durchschnitt | AD31: Hier unten finden Sie Ihre gewonnen oder verlorenen Schafkopfspiele
W33: Spiele | X33: =X34/X12 -> 0.5 | Y33: =Y34/X12 -> 0.5 | Z33: =Z34/X12 -> 0.3333333333 | AA33: =AA34/X12 -> 0.6666666667 | AD33: Spiele | AE33: =AE34/X12 -> 0.6666666667 | AF33: =AF34/X12 -> 0.3333333333 | AG33: =AG34/X12 -> 0.5 | AH33: =AH34/X12 -> 0.5
W34: gewonnen | X34: =SUM(X36:X45) -> 3 | Y34: =SUM(Y36:Y45) -> 3 | Z34: 2 | AA34: 4 | AD34: gewonnen | AE34: =SUM(AE36:AE45) -> 4 | AF34: =SUM(AF36:AF45) -> 2 | AG34: 3 | AH34: 3
W35: verloren | X35: =Tabelle1!B8 -> Elvis Presley | Z35: =Tabelle1!F8 -> Jürgen Drews | AD35: verloren | AE35: =Tabelle1!J8 -> Peter Kraus | AG35: =Tabelle1!N8 -> Andrea Berg
W36: Sauspiele | X36: =SUM((Tabelle1!$T$10:$T$1010="Sauspiel")*(Tabelle1!$B$10:$B$1010=1)) -> 1 | Y36: =SUM((Tabelle1!$T$10:$T$1010="Sauspiel")*(Tabelle1!$B$10:$B$1010="")) -> 0 | Z36: =SUM((Tabelle1!$T$10:$T$1010="Sauspiel")*(Tabelle1!$F$10:$F$1010=1)) -> 0 | AA36: =SUM((Tabelle1!$T$10:$T$1010="Sauspiel")*(Tabelle1!$F$10:$F$1010="")) -> 1 | AD36: Sauspiele | AE36: =SUM((Tabelle1!$T$10:$T$1010="Sauspiel")*(Tabelle1!$J$10:$J$1010=1)) -> 1 | AF36: =SUM((Tabelle1!$T$10:$T$1010="Sauspiel")*(Tabelle1!$J$10:$J$1010="")) -> 0 | AG36: =SUM((Tabelle1!$T$10:$T$1010="Sauspiel")*(Tabelle1!$N$10:$N$1010=1)) -> 0 | AH36: =SUM((Tabelle1!$T$10:$T$1010="Sauspiel")*(Tabelle1!$N$10:$N$1010="")) -> 1
W37: Kreuzrunde | X37: =SUM((Tabelle1!$T$10:$T$1010="Kreuzrunde")*(Tabelle1!$B$10:$B$1010=1)) -> 0 | Y37: =SUM((Tabelle1!$T$10:$T$1010="Kreuzrunde")*(Tabelle1!$B$10:$B$1010="")) -> 0 | Z37: =SUM((Tabelle1!$T$10:$T$1010="Kreuzrunde")*(Tabelle1!$F$10:$F$1010=1)) -> 0 | AA37: =SUM((Tabelle1!$T$10:$T$1010="Kreuzrunde")*(Tabelle1!$F$10:$F$1010="")) -> 0 | AD37: Kreuzrunde | AE37: =SUM((Tabelle1!$T$10:$T$1010="Kreuzrunde")*(Tabelle1!$J$10:$J$1010=1)) -> 0 | AF37: =SUM((Tabelle1!$T$10:$T$1010="Kreuzrunde")*(Tabelle1!$J$10:$J$1010="")) -> 0 | AG37: =SUM((Tabelle1!$T$10:$T$1010="Kreuzrunde")*(Tabelle1!$N$10:$N$1010=1)) -> 0 | AH37: =SUM((Tabelle1!$T$10:$T$1010="Kreuzrunde")*(Tabelle1!$N$10:$N$1010="")) -> 0
W38: 2 gegen 2 | X38: =SUM((Tabelle1!$T$10:$T$1010="2 gegen 2")*(Tabelle1!$B$10:$B$1010=1)) -> 0 | Y38: =SUM((Tabelle1!$T$10:$T$1010="2 gegen 2")*(Tabelle1!$B$10:$B$1010="")) -> 1 | Z38: =SUM((Tabelle1!$T$10:$T$1010="2 gegen 2")*(Tabelle1!$F$10:$F$1010=1)) -> 1 | AA38: =SUM((Tabelle1!$T$10:$T$1010="2 gegen 2")*(Tabelle1!$F$10:$F$1010="")) -> 0 | AD38: 2 gegen 2 | AE38: =SUM((Tabelle1!$T$10:$T$1010="2 gegen 2")*(Tabelle1!$J$10:$J$1010=1)) -> 1 | AF38: =SUM((Tabelle1!$T$10:$T$1010="2 gegen 2")*(Tabelle1!$J$10:$J$1010="")) -> 0 | AG38: =SUM((Tabelle1!$T$10:$T$1010="2 gegen 2")*(Tabelle1!$N$10:$N$1010=1)) -> 0 | AH38: =SUM((Tabelle1!$T$10:$T$1010="2 gegen 2")*(Tabelle1!$N$10:$N$1010="")) -> 1
W39: Solo | X39: =SUM((Tabelle1!$T$10:$T$1010="Solo")*(Tabelle1!$B$10:$B$1010=1)) -> 1 | Y39: =SUM((Tabelle1!$T$10:$T$1010="Solo")*(Tabelle1!$B$10:$B$1010="")) -> 0 | Z39: =SUM((Tabelle1!$T$10:$T$1010="Solo")*(Tabelle1!$F$10:$F$1010=1)) -> 0 | AA39: =SUM((Tabelle1!$T$10:$T$1010="Solo")*(Tabelle1!$F$10:$F$1010="")) -> 1 | AD39: Solo | AE39: =SUM((Tabelle1!$T$10:$T$1010="Solo")*(Tabelle1!$J$10:$J$1010=1)) -> 1 | AF39: =SUM((Tabelle1!$T$10:$T$1010="Solo")*(Tabelle1!$J$10:$J$1010="")) -> 0 | AG39: =SUM((Tabelle1!$T$10:$T$1010="Solo")*(Tabelle1!$N$10:$N$1010=1)) -> 1 | AH39: =SUM((Tabelle1!$T$10:$T$1010="Solo")*(Tabelle1!$N$10:$N$1010="")) -> 0
W40: Wenz | X40: =SUM((Tabelle1!$T$10:$T$1010="Wenz")*(Tabelle1!$B$10:$B$1010=1)) -> 1 | Y40: =SUM((Tabelle1!$T$10:$T$1010="Wenz")*(Tabelle1!$B$10:$B$1010="")) -> 1 | Z40: =SUM((Tabelle1!$T$10:$T$1010="Wenz")*(Tabelle1!$F$10:$F$1010=1)) -> 1 | AA40: =SUM((Tabelle1!$T$10:$T$1010="Wenz")*(Tabelle1!$F$10:$F$1010="")) -> 1 | AD40: Wenz | AE40: =SUM((Tabelle1!$T$10:$T$1010="Wenz")*(Tabelle1!$J$10:$J$1010=1)) -> 1 | AF40: =SUM((Tabelle1!$T$10:$T$1010="Wenz")*(Tabelle1!$J$10:$J$1010="")) -> 1 | AG40: =SUM((Tabelle1!$T$10:$T$1010="Wenz")*(Tabelle1!$N$10:$N$1010=1)) -> 1 | AH40: =SUM((Tabelle1!$T$10:$T$1010="Wenz")*(Tabelle1!$N$10:$N$1010="")) -> 1
W41: Farbwenz | X41: =SUM((Tabelle1!$T$10:$T$1010="Farbwenz")*(Tabelle1!$B$10:$B$1010=1)) -> 0 | Y41: =SUM((Tabelle1!$T$10:$T$1010="Farbwenz")*(Tabelle1!$B$10:$B$1010="")) -> 0 | Z41: =SUM((Tabelle1!$T$10:$T$1010="Farbwenz")*(Tabelle1!$F$10:$F$1010=1)) -> 0 | AA41: =SUM((Tabelle1!$T$10:$T$1010="Farbwenz")*(Tabelle1!$F$10:$F$1010="")) -> 0 | AD41: Farbwenz | AE41: =SUM((Tabelle1!$T$10:$T$1010="Farbwenz")*(Tabelle1!$J$10:$J$1010=1)) -> 0 | AF41: =SUM((Tabelle1!$T$10:$T$1010="Farbwenz")*(Tabelle1!$J$10:$J$1010="")) -> 0 | AG41: =SUM((Tabelle1!$T$10:$T$1010="Farbwenz")*(Tabelle1!$N$10:$N$1010=1)) -> 0 | AH41: =SUM((Tabelle1!$T$10:$T$1010="Farbwenz")*(Tabelle1!$N$10:$N$1010="")) -> 0
W42: Geier | X42: =SUM((Tabelle1!$T$10:$T$1010="Geier")*(Tabelle1!$B$10:$B$1010=1)) -> 0 | Y42: =SUM((Tabelle1!$T$10:$T$1010="Geier")*(Tabelle1!$B$10:$B$1010="")) -> 0 | Z42: =SUM((Tabelle1!$T$10:$T$1010="Geier")*(Tabelle1!$F$10:$F$1010=1)) -> 0 | AA42: =SUM((Tabelle1!$T$10:$T$1010="Geier")*(Tabelle1!$F$10:$F$1010="")) -> 0 | AD42: Geier | AE42: =SUM((Tabelle1!$T$10:$T$1010="Geier")*(Tabelle1!$J$10:$J$1010=1)) -> 0 | AF42: =SUM((Tabelle1!$T$10:$T$1010="Geier")*(Tabelle1!$J$10:$J$1010="")) -> 0 | AG42: =SUM((Tabelle1!$T$10:$T$1010="Geier")*(Tabelle1!$N$10:$N$1010=1)) -> 0 | AH42: =SUM((Tabelle1!$T$10:$T$1010="Geier")*(Tabelle1!$N$10:$N$1010="")) -> 0
W43: Farbgeier | X43: =SUM((Tabelle1!$T$10:$T$1010="Farbgeier")*(Tabelle1!$B$10:$B$1010=1)) -> 0 | Y43: =SUM((Tabelle1!$T$10:$T$1010="Farbgeier")*(Tabelle1!$B$10:$B$1010="")) -> 0 | Z43: =SUM((Tabelle1!$T$10:$T$1010="Farbgeier")*(Tabelle1!$F$10:$F$1010=1)) -> 0 | AA43: =SUM((Tabelle1!$T$10:$T$1010="Farbgeier")*(Tabelle1!$F$10:$F$1010="")) -> 0 | AD43: Farbgeier | AE43: =SUM((Tabelle1!$T$10:$T$1010="Farbgeier")*(Tabelle1!$J$10:$J$1010=1)) -> 0 | AF43: =SUM((Tabelle1!$T$10:$T$1010="Farbgeier")*(Tabelle1!$J$10:$J$1010="")) -> 0 | AG43: =SUM((Tabelle1!$T$10:$T$1010="Farbgeier")*(Tabelle1!$N$10:$N$1010=1)) -> 0 | AH43: =SUM((Tabelle1!$T$10:$T$1010="Farbgeier")*(Tabelle1!$N$10:$N$1010="")) -> 0
W44: Bettel | X44: =SUM((Tabelle1!$T$10:$T$1010="Bettel")*(Tabelle1!$B$10:$B$1010=1)) -> 0 | Y44: =SUM((Tabelle1!$T$10:$T$1010="Bettel")*(Tabelle1!$B$10:$B$1010="")) -> 1 | Z44: =SUM((Tabelle1!$T$10:$T$1010="Bettel")*(Tabelle1!$F$10:$F$1010=1)) -> 0 | AA44: =SUM((Tabelle1!$T$10:$T$1010="Bettel")*(Tabelle1!$F$10:$F$1010="")) -> 1 | AD44: Bettel | AE44: =SUM((Tabelle1!$T$10:$T$1010="Bettel")*(Tabelle1!$J$10:$J$1010=1)) -> 0 | AF44: =SUM((Tabelle1!$T$10:$T$1010="Bettel")*(Tabelle1!$J$10:$J$1010="")) -> 1 | AG44: =SUM((Tabelle1!$T$10:$T$1010="Bettel")*(Tabelle1!$N$10:$N$1010=1)) -> 1 | AH44: =SUM((Tabelle1!$T$10:$T$1010="Bettel")*(Tabelle1!$N$10:$N$1010="")) -> 0
W45: 1 geg 3/ Ramsch | X45: =SUM((Tabelle1!$T$10:$T$1010="1 geg 3 / Ramsch")*(Tabelle1!$B$10:$B$1010=1)) -> 0 | Y45: =SUM((Tabelle1!$T$10:$T$1010="1 geg 3 / Ramsch")*(Tabelle1!$B$10:$B$1010="")) -> 0 | Z45: =SUM((Tabelle1!$T$10:$T$1010="1 geg 3 / Ramsch")*(Tabelle1!$F$10:$F$1010=1)) -> 0 | AA45: =SUM((Tabelle1!$T$10:$T$1010="1 geg 3 / Ramsch")*(Tabelle1!$F$10:$F$1010="")) -> 0 | AD45: 1 geg 3 / Ramsch | AE45: =SUM((Tabelle1!$T$10:$T$1010="1 geg 3 / Ramsch")*(Tabelle1!$J$10:$J$1010=1)) -> 0 | AF45: =SUM((Tabelle1!$T$10:$T$1010="1 geg 3 / Ramsch")*(Tabelle1!$J$10:$J$1010="")) -> 0 | AG45: =SUM((Tabelle1!$T$10:$T$1010="1 geg 3 / Ramsch")*(Tabelle1!$N$10:$N$1010=1)) -> 0 | AH45: =SUM((Tabelle1!$T$10:$T$1010="1 geg 3 / Ramsch")*(Tabelle1!$N$10:$N$1010="")) -> 0
W46: Spiele | X46: gewonnen | Y46: verloren | Z46: gewonnen | AA46: verloren | AD46: Spiele | AE46: gewonnen | AF46: verloren | AG46: gewonnen | AH46: verloren
